bitfinex/quotes_SOLUSD_20250422
["timestamp","ask_amount","ask_price","bid_price","bid_amount"]
[1745311789483,33.55499536,139.41,139.37,8.4189416]
[1745311790307,25.13605376,139.41,139.37,8.4189416]
[1745311790515,25.13605376,139.41,139.38,8.4189416]
[1745311791507,7.20308657,139.41,139.38,8.4189416]
[1745311792202,7.20308657,139.41,139.39,8.4189416]
[1745311793515,0.03,139.41,139.39,8.4189416]
[1745311796092,0.03,139.41,139.4,51.4589416]
[1745311799207,0.03,139.41,139.39,8.4189416]
[1745311800100,0.03,139.41,139.4,8.4189416]
[1745311803831,0.03,139.41,139.39,43.04]
[1745311803993,0.03,139.41,139.39,51.4589416]
[1745311804323,0.03,139.41,139.4,8.4189416]
[1745311806322,0.03,139.41,139.4,51.4589416]
[1745311811127,0.03,139.41,139.4,8.4189416]
[1745311813501,0.03,139.41,139.38,8.4189416]
[1745311813814,0.03,139.41,139.37,51.4589416]
[1745311814018,0.03,139.41,139.38,8.4189416]
[1745311814225,0.03,139.41,139.39,8.4189416]
[1745311814420,0.03,139.41,139.38,8.4189416]
[1745311816129,0.03,139.41,139.39,8.4189416]
[1745311818317,0.03,139.41,139.4,8.4189416]
[1745311818900,0.03,139.41,139.4,70.10859046]
[1745311826733,0.03,139.41,139.4,77.2821916]
[1745311827826,0.03,139.41,139.4,70.10859046]
[1745311828334,0.03,139.41,139.4,77.2821916]
[1745311830041,0.03,139.41,139.4,70.10859046]
[1745311830752,0.03,139.41,139.4,77.2821916]
[1745311830915,0.03,139.41,139.4,96.10859046]
[1745311831412,0.03,139.41,139.4,103.2821916]
[1745311831937,0.03,139.41,139.4,96.10859046]
[1745311838847,0.03,139.41,139.4,103.2821916]
[1745311839749,0.03,139.41,139.4,96.10859046]
[1745311841456,0.03,139.41,139.4,51.4589416]
[1745311849654,0.03,139.41,139.4,8.4189416]
[1745311850651,7.20308657,139.41,139.4,8.4189416]
[1745311851150,7.20308657,139.41,139.38,34.4189416]
[1745311851540,7.20308657,139.41,139.39,8.4189416]
[1745311852043,7.20308657,139.41,139.4,8.4189416]
[1745311853559,0.03,139.41,139.4,8.4189416]
[1745311860967,0.03,139.41,139.4,51.4589416]
[1745311862264,0.03,139.41,139.4,8.4189416]
[1745311876171,0.03,139.41,139.4,51.4589416]
[1745311878582,0.03,139.41,139.39,43.04]
[1745311878761,0.03,139.41,139.4,8.4189416]
[1745311884089,0.03,139.41,139.4,70.10859046]
[1745311888793,0.03,139.41,139.4,96.10859046]
[1745311889692,0.03,139.41,139.4,69.04]
[1745311889910,0.03,139.41,139.4,8.4189416]
[1745311892786,0.03,139.41,139.4,70.10859046]
[1745311905118,0.03,139.41,139.39,8.4189416]
[1745311905507,0.03,139.41,139.38,26.0]
[1745311905824,0.03,139.41,139.39,8.4189416]
[1745311906293,0.03,139.41,139.39,51.4389416]
[1745311908822,0.03,139.41,139.4,8.4189416]
[1745311916422,0.03,139.41,139.4,51.4389416]
[1745311920455,0.03,139.41,139.37,43.02]
[1745311920641,10.0086416,139.41,139.37,43.02]
[1745311920840,25.107604,139.4,139.36,8.4189416]
[1745311925455,25.107604,139.4,139.34,87.66964886]
[1745311925642,25.107604,139.4,139.36,8.4189416]
[1745311925956,33.5265456,139.4,139.35,8.4189416]
[1745311926254,33.5265456,139.4,139.36,8.4189416]
[1745311926846,8.4189416,139.39,139.32,69.083]
[1745311927054,8.4189416,139.38,139.34,8.4189416]
[1745311927256,1.5597,139.37,139.34,8.4189416]
[1745311927966,7.17566016,139.36,139.34,8.4189416]
[1745311930758,25.11481056,139.36,139.33,8.4189416]
[1745311931260,25.11481056,139.36,139.32,0.063]
[1745311931261,33.53375216,139.36,139.32,0.063]
[1745311933267,25.11481056,139.36,139.32,8.4819416]
[1745311934563,33.53375216,139.36,139.32,0.063]
[1745311939569,25.11481056,139.36,139.32,18.71264886]
[1745311939754,25.11481056,139.36,139.35,8.4189416]
[1745311940259,7.17566016,139.36,139.35,8.4189416]
[1745311940954,25.11145138,139.38,139.35,8.4189416]
[1745311944482,25.11145138,139.38,139.33,43.02]
[1745311944654,25.11145138,139.38,139.35,8.4189416]
[1745311945466,17.93682088,139.38,139.35,8.4189416]
[1745311945867,17.93682088,139.38,139.33,43.02]
[1745311945868,17.93682088,139.38,139.36,8.4189416]
[1745311946067,7.17411579,139.39,139.37,8.4189416]
[1745311946646,7.17373571,139.4,139.38,51.4389416]
[1745311946873,0.03,139.41,139.39,8.4189416]
[1745311947052,0.03,139.41,139.4,8.4189416]
[1745311947672,0.03,139.41,139.4,8.26340989]
[1745311948358,0.03,139.41,139.4,69.93305875]
[1745311952712,0.03,139.41,139.4,61.66964886]
[1745311952904,0.03,139.41,139.4,70.08859046]
[1745311953411,0.03,139.41,139.4,61.66964886]
[1745311953597,0.03,139.41,139.4,70.08859046]
[1745311965127,0.03,139.41,139.4,8.4189416]
[1745311966339,0.03,139.41,139.4,51.4389416]
[1745311968033,0.03,139.41,139.4,8.4189416]
[1745311968937,0.03,139.41,139.39,8.4189416]
[1745311972439,0.03,139.41,139.38,61.66964886]
[1745311972640,0.03,139.41,139.39,8.4189416]
[1745311977029,0.03,139.41,139.4,8.4189416]
[1745311980264,0.03,139.41,139.38,61.66964886]
[1745311980651,0.03,139.41,139.4,8.4189416]
[1745311988653,0.03,139.41,139.37,43.02]
[1745311988959,0.03,139.41,139.39,8.4189416]
[1745311990556,0.03,139.41,139.4,8.4189416]
[1745311993466,0.03,139.41,139.39,8.4189416]
[1745311994466,0.03,139.41,139.37,43.02]
[1745311994668,0.03,139.41,139.39,8.4189416]
[1745311995042,0.03,139.41,139.37,43.02]
[1745311995242,0.03,139.41,139.38,8.4189416]
[1745312000170,0.03,139.41,139.39,8.4189416]
[1745312000469,0.03,139.41,139.4,8.4189416]
[1745312001860,0.03,139.41,139.38,8.4189416]
[1745312003077,0.03,139.41,139.39,8.4189416]
[1745312004372,0.03,139.41,139.4,8.4189416]
[1745312006072,0.03,139.41,139.39,8.4189416]
[1745312008186,0.03,139.41,139.38,8.4189416]
[1745312008385,0.03,139.41,139.34,43.083]
[1745312008561,8.4489416,139.41,139.37,8.4189416]
[1745312008975,0.03,139.41,139.37,8.4189416]
[1745312010484,25.13580301,139.41,139.38,8.4189416]
[1745312014484,25.13580301,139.41,139.37,8.4189416]
[1745312016181,25.13580301,139.41,139.38,8.4189416]
[1745312017686,25.13580301,139.41,139.37,8.4189416]
[1745312019286,25.13580301,139.41,139.38,8.4189416]
[1745312021700,25.13580301,139.41,139.35,61.66964886]
[1745312021877,25.13580301,139.41,139.38,8.4189416]
[1745312022371,25.13580301,139.41,139.37,8.4189416]
[1745312026591,25.13580301,139.41,139.38,8.4189416]
[1745312027486,25.13580301,139.41,139.37,8.4189416]
[1745312031385,25.13580301,139.41,139.38,8.4189416]
[1745312032213,25.13580301,139.41,139.37,8.4189416]
[1745312034906,33.55474461,139.41,139.36,8.4189416]
[1745312035297,8.4189416,139.4,139.35,8.4189416]
[1745312035786,8.4189416,139.39,139.34,77.5019416]
[1745312035986,8.4189416,139.39,139.35,8.4189416]
[1745312037907,25.11120676,139.38,139.35,8.4189416]
[1745312039283,25.11120676,139.38,139.34,26.063]
[1745312039479,8.4189416,139.37,139.34,0.063]
[1745312040496,7.17566016,139.36,139.34,0.063]
[1745312040691,15.59460176,139.36,139.34,0.063]
[1745312041802,7.17566016,139.36,139.34,0.063]
[1745312043786,25.11300853,139.37,139.34,0.063]
[1745312044607,25.11300853,139.37,139.35,8.4189416]
[1745312047717,25.10940526,139.39,139.35,8.4189416]
[1745312048417,33.52834686,139.39,139.35,8.4189416]
[1745312049800,33.52834686,139.39,139.34,8.4819416]
[1745312050325,8.4189416,139.38,139.34,0.063]
[1745312050620,8.4189416,139.37,139.34,0.063]
[1745312052115,8.4189416,139.38,139.34,0.063]
[1745312052418,33.53195013,139.37,139.34,0.063]
[1745312052918,25.11300853,139.37,139.34,0.063]
[1745312053312,25.11300853,139.37,139.34,8.4819416]
[1745312054702,17.93786324,139.37,139.34,8.4819416]
[1745312056423,17.93786324,139.37,139.35,8.4189416]
[1745312056597,25.10940526,139.39,139.35,8.4189416]
[1745312056798,25.10940526,139.39,139.34,0.063]
[1745312056997,33.52834686,139.39,139.34,8.4819416]
[1745312057290,25.10940526,139.39,139.35,8.4189416]
[1745312058229,7.17411579,139.39,139.38,8.4189416]
[1745312059223,17.96286516,139.41,139.38,8.4189416]
[1745312065210,0.03,139.41,139.38,8.4189416]
[1745312067328,25.13580301,139.41,139.38,8.4189416]
[1745312067522,25.13580301,139.41,139.37,8.4189416]
[1745312067729,33.55474461,139.41,139.36,8.4189416]
[1745312069429,25.13580301,139.41,139.38,8.4189416]
[1745312075734,17.96271644,139.41,139.38,8.4189416]
[1745312080445,0.03,139.41,139.39,8.4189416]
[1745312081943,0.03,139.41,139.38,8.4189416]
[1745312083945,0.03,139.41,139.35,43.02]
[1745312084128,0.03,139.41,139.38,8.4189416]
[1745312086166,0.03,139.41,139.35,43.02]
[1745312086376,0.03,139.41,139.36,8.4189416]
[1745312086544,0.03,139.41,139.37,8.4189416]
[1745312087262,25.13580301,139.41,139.37,8.4189416]
[1745312088269,17.96271644,139.41,139.37,8.4189416]
[1745312092476,0.03,139.41,139.37,8.4189416]
[1745312098168,0.03,139.41,139.38,8.4189416]
[1745312105471,0.03,139.41,139.39,8.4189416]
[1745312106061,0.03,139.41,139.4,70.08859046]
[1745312106987,0.03,139.41,139.4,51.4389416]
[1745312112089,0.03,139.41,139.39,8.4189416]
[1745312114390,17.93014415,139.43,139.39,8.4189416]
[1745312114586,17.93014415,139.43,139.4,8.4189416]
[1745312116587,17.93014415,139.43,139.39,8.4189416]
[1745312117689,25.10220181,139.43,139.39,8.4189416]
[1745312117904,25.10220181,139.43,139.37,8.4189416]
[1745312118107,8.4189416,139.42,139.37,8.4189416]
[1745312119281,60.96249012,139.43,139.37,8.4189416]
[1745312119598,8.4189416,139.42,139.37,8.4189416]
[1745312120396,25.10580301,139.41,139.37,51.4389416]
[1745312122484,25.10580301,139.41,139.37,50.9389416]
[1745312123312,33.52474461,139.41,139.37,50.9389416]
[1745312124007,25.10580301,139.41,139.37,50.9389416]
[1745312124695,25.10580301,139.41,139.38,8.4189416]
[1745312125826,25.10580301,139.41,139.37,51.4389416]
[1745312129915,33.52474461,139.41,139.37,43.02]
[1745312133127,8.4189416,139.42,139.37,43.02]
[1745312134344,25.10580301,139.41,139.37,43.02]
[1745312135727,25.10580301,139.41,139.37,51.4389416]
[1745312136520,8.4189416,139.41,139.37,43.02]
[1745312138839,25.107604,139.4,139.37,43.02]
[1745312141537,33.5265456,139.4,139.37,43.02]
[1745312142240,33.5265456,139.4,139.36,43.02]
[1745312143236,8.4189416,139.38,139.34,34.4819416]
[1745312143541,8.4189416,139.38,139.34,26.063]
[1745312143715,8.4189416,139.38,139.34,34.4819416]
[1745312143916,8.4189416,139.39,139.34,34.4819416]
[1745312145737,25.11120676,139.38,139.34,34.4819416]
[1745312147144,25.11120676,139.38,139.34,0.063]
[1745312147145,8.4189416,139.37,139.34,0.063]
[1745312147548,33.53014836,139.38,139.34,0.063]
[1745312149252,25.11120676,139.38,139.34,8.4819416]
[1745312151053,25.11120676,139.38,139.34,51.5019416]
[1745312152751,33.53014836,139.38,139.34,0.063]
[1745312157059,25.11120676,139.38,139.34,0.063]
[1745312157228,33.53014836,139.38,139.34,0.063]
[1745312166540,8.4189416,139.36,139.34,0.063]
[1745312167758,7.17617509,139.35,139.34,0.063]
[1745312168235,15.59511669,139.35,139.34,0.063]
[1745312170354,35.12195443,139.35,139.32,0.063]
[1745312170556,8.4189416,139.33,139.32,0.063]
[1745312170950,8.4189416,139.33,139.31,0.063]
[1745312171251,8.4189416,139.32,139.31,0.063]
[1745312172176,15.59666195,139.32,139.31,0.063]
[1745312173372,15.59666195,139.32,139.3,1e-08]
[1745312173373,8.4189416,139.31,139.3,1e-08]
[1745312173579,8.4189416,139.31,139.29,1e-08]
[1745312173757,7.17772035,139.32,139.29,1e-08]
[1745312173758,8.4189416,139.3,139.29,1e-08]
[1745312174958,15.59769249,139.3,139.29,1e-08]
[1745312175455,7.17875089,139.3,139.29,1e-08]
[1745312175777,15.59769249,139.3,139.29,1e-08]
[1745312179683,15.59769249,139.3,139.28,1e-08]
[1745312179883,8.4189416,139.29,139.28,1e-08]
[1745312180779,15.59820787,139.29,139.28,1e-08]
[1745312182878,8.4189416,139.3,139.28,1e-08]
[1745312183072,33.54276615,139.31,139.28,1e-08]
[1745312183379,25.12382455,139.31,139.28,1e-08]
[1745312183571,25.12382455,139.31,139.28,8.41894161]
[1745312183770,25.12382455,139.31,139.29,8.4189416]
[1745312184775,33.53915978,139.33,139.28,8.41894161]
[1745312185987,25.12021818,139.33,139.29,8.4189416]
[1745312186181,26.36195459,139.33,139.29,8.4189416]
[1745312187184,33.53915978,139.33,139.29,8.4189416]
[1745312187566,8.4189416,139.32,139.28,8.41894161]
[1745312187961,25.12021818,139.33,139.28,8.41894161]
[1745312188182,33.53915978,139.33,139.28,8.41894161]
[1745312190492,25.12021818,139.33,139.3,8.4189416]
[1745312191895,25.12021818,139.33,139.3,51.4389416]
[1745312194203,25.12021818,139.33,139.29,8.4189416]
[1745312195302,25.12021818,139.33,139.29,51.4389416]
[1745312195997,25.12021818,139.33,139.3,8.4189416]
[1745312197599,7.17720519,139.33,139.31,8.4189416]
[1745312197981,7.17669011,139.34,139.31,8.4189416]
[1745312198590,8.4189416,139.33,139.29,51.4389416]
[1745312198793,8.4189416,139.33,139.29,43.02]
[1745312200078,25.12202124,139.32,139.29,43.02]
[1745312201411,7.17772035,139.32,139.29,51.4389416]
[1745312202211,7.17720519,139.33,139.29,51.4389416]
[1745312203417,7.17720519,139.33,139.3,51.4389416]
[1745312203595,7.17720519,139.33,139.31,8.4189416]
[1745312204319,17.94196951,139.34,139.3,51.4389416]
[1745312204615,17.94196951,139.34,139.31,8.4189416]
[1745312205895,7.17617509,139.35,139.31,8.4189416]
[1745312207617,7.17617509,139.35,139.32,8.4189416]
[1745312207999,7.17617509,139.35,139.33,8.4189416]
[1745312210023,33.53291025,139.37,139.33,8.4189416]
[1745312210196,33.53291025,139.37,139.32,51.4389416]
[1745312210511,25.11396865,139.37,139.33,8.4189416]
[1745312210710,33.53291025,139.37,139.33,8.4189416]
[1745312212295,25.11396865,139.37,139.33,8.4189416]
[1745312213215,26.35776496,139.37,139.32,51.4389416]
[1745312215411,33.53291025,139.37,139.32,51.4389416]
[1745312220624,33.53291025,139.37,139.33,8.4189416]
[1745312220625,25.11396865,139.37,139.33,8.4189416]
[1745312222024,33.53291025,139.37,139.32,51.4689416]
[1745312223925,8.4189416,139.36,139.32,51.4689416]
[1745312224300,8.4189416,139.36,139.32,43.05]
[1745312224507,33.53291025,139.37,139.32,51.4689416]
[1745312225613,33.53291025,139.37,139.32,43.05]
[1745312225821,25.11396865,139.37,139.34,8.4189416]
[1745312227428,17.93882336,139.37,139.33,8.4189416]
[1745312227811,26.35776496,139.37,139.32,43.05]
[1745312228137,8.4189416,139.36,139.32,43.05]
[1745312229933,25.11661283,139.35,139.32,43.05]
[1745312236647,25.11661283,139.35,139.24,0.063]
[1745312236648,26.0,139.28,139.24,0.063]
[1745312236944,8.4189416,139.25,139.23,1e-08]
[1745312237119,8.4189416,139.24,139.22,1e-08]
[1745312237315,8.4189416,139.23,139.22,1e-08]
[1745312238447,15.60130172,139.23,139.22,1e-08]
[1745312240324,31.20130172,139.23,139.22,1e-08]
[1745312265272,31.20130172,139.23,139.22,1e-08]
[1745312269502,57.20130172,139.23,139.22,1e-08]
[1745312269666,8.4189416,139.18,139.17,0.063]
[1745312271683,15.60388196,139.18,139.17,0.063]
[1745312280687,8.4189416,139.19,139.17,0.063]
[1745312282186,7.18494036,139.18,139.17,0.063]
[1745312284574,15.60388196,139.18,139.17,0.063]
[1745312288206,57.20388196,139.18,139.16,1e-08]
[1745312288502,15.60439823,139.17,139.16,1e-08]
[1745312293491,33.56803981,139.17,139.14,0.063]
[1745312293698,8.4189416,139.15,139.14,0.063]
[1745312294397,8.4189416,139.12,139.11,0.063]
[1745312294587,15.6069807,139.12,139.11,0.063]
[1745312300019,93.93239596,139.12,139.11,0.063]
[1745312300217,8.4189416,139.09,139.02,0.063]
[1745312300514,8.4189416,139.09,139.02,8.4819416]
[1745312300913,8.4189416,139.09,139.02,70.18159046]
[1745312301224,15.60853107,139.09,139.02,70.18159046]
[1745312301906,15.60853107,139.09,139.02,43.113]
[1745312303431,15.60853107,139.09,139.02,51.5319416]
[1745312303719,15.60853107,139.09,139.03,8.4189416]
[1745312305029,7.18855581,139.11,139.05,43.05]
[1745312305318,33.57707845,139.12,139.06,8.4189416]
[1745312306614,15.6069807,139.12,139.06,8.4189416]
[1745312307096,25.15813685,139.12,139.03,44.6175]
[1745312307299,8.4189416,139.11,139.06,8.4189416]
[1745312307700,41.6069807,139.12,139.06,8.4189416]
[1745312308393,8.4189416,139.11,139.06,8.4189416]
[1745312309505,7.1890726,139.1,139.06,8.4189416]
[1745312311720,7.1890726,139.1,139.07,43.05]
[1745312312421,7.18868441,139.11,139.07,51.4689416]
[1745312312718,7.18868441,139.11,139.07,57.4988416]
[1745312314225,15.60762601,139.11,139.07,49.0799]
[1745312316627,15.6069807,139.12,139.07,49.0799]
[1745312317717,8.4189416,139.11,139.07,49.0799]
[1745312318915,7.1890726,139.1,139.07,6.0299]
[1745312319121,7.18880539,139.11,139.07,14.4488416]
[1745312319327,8.4189416,139.12,139.09,8.4189416]
[1745312319328,7.1882512,139.12,139.09,8.4189416]
[1745312319521,1.5619,139.15,139.1,8.4189416]
[1745312319522,15.60543099,139.15,139.1,8.4189416]
[1745312319728,7.18648939,139.15,139.11,8.4189416]
[1745312320228,7.18648939,139.15,139.12,8.4189416]
[1745312321634,7.18648939,139.15,139.13,43.05]
[1745312323239,7.18648939,139.15,139.12,43.05]
[1745312323627,7.18648939,139.15,139.12,51.4689416]
[1745312324022,7.18648939,139.15,139.08,27.2467379]
[1745312324023,8.4189416,139.13,139.08,27.2467379]
[1745312324339,8.4189416,139.12,139.08,1.2467379]
[1745312325670,8.4189416,139.11,139.08,1.2467379]
[1745312326147,7.1890726,139.1,139.08,1.2467379]
[1745312337573,17.96986348,139.13,139.08,1.2467379]
[1745312337574,25.15738594,139.13,139.08,1.2467379]
[1745312337862,8.4189416,139.11,139.08,1.2467379]
[1745312339641,7.1890726,139.1,139.08,1.2467379]
[1745312342661,7.18752246,139.13,139.09,8.4189416]
[1745312342858,7.1872772,139.14,139.11,8.4189416]
[1745312343048,9.9717416,139.16,139.11,8.4189416]
[1745312343250,7.1866596,139.15,139.11,8.4189416]
[1745312343443,7.1866596,139.15,139.12,8.4189416]
[1745312343773,7.1866596,139.15,139.11,8.4189416]
[1745312345962,7.1866596,139.15,139.11,51.4689416]
[1745312346170,7.1866596,139.15,139.12,8.4189416]
[1745312351890,7.1866596,139.15,139.13,43.05]
[1745312353980,8.73902241,139.16,139.13,43.05]
[1745312354157,15.60516401,139.16,139.13,43.05]
[1745312359688,7.18622241,139.16,139.13,43.05]
[1745312374992,15.60516401,139.16,139.12,8.4189416]
[1745312375200,15.60516401,139.16,139.11,8.4189416]
[1745312376795,15.60516401,139.16,139.12,8.4189416]
[1745312380704,15.60516401,139.16,139.1,68.8886788]
[1745312380914,15.60516401,139.16,139.12,8.4189416]
[1745312381397,8.4489416,139.17,139.12,8.4189416]
[1745312382282,8.4489416,139.17,139.13,8.4189416]
[1745312384703,7.18597298,139.16,139.12,8.4189416]
[1745312385608,7.18597298,139.16,139.13,8.4189416]
[1745312387421,7.21545663,139.17,139.13,8.4189416]
[1745312390688,0.03,139.17,139.13,8.4189416]
[1745312392021,8.4489416,139.17,139.13,8.4189416]
[1745312392396,8.4489416,139.17,139.11,43.05]
[1745312392607,8.4489416,139.17,139.12,8.4189416]
[1745312392919,7.18597298,139.16,139.12,8.4189416]
[1745312402333,7.18597298,139.16,139.13,43.05]
[1745312402703,8.4489416,139.17,139.13,43.05]
[1745312402704,7.21570609,139.17,139.13,58.65646106]
[1745312403018,7.21570609,139.17,139.13,51.4689416]
[1745312403819,15.63464769,139.17,139.13,43.05]
[1745312404728,0.03,139.17,139.13,43.05]
[1745312405101,0.03,139.17,139.13,8.4189416]
[1745312410124,0.03,139.17,139.12,70.11859046]
[1745312411832,0.03,139.17,139.13,8.4189416]
[1745312412531,0.03,139.17,139.14,43.05]
[1745312412833,0.03,139.17,139.15,8.4189416]
[1745312413018,0.03,139.17,139.16,8.4189416]
[1745312413620,0.03,139.17,139.16,77.30456344]
[1745312421031,0.03,139.2,139.19,87.69964886]
[1745312421237,0.03,139.23,139.2,61.69964886]
[1745312421425,0.03,139.23,139.22,70.11859046]
[1745312423239,0.03,139.23,139.22,77.30146648]
[1745312424852,0.03,139.23,139.22,51.4689416]
[1745312426650,0.03,139.23,139.19,69.05]
[1745312426849,8.4489416,139.23,139.19,77.4689416]
[1745312427818,7.18287602,139.22,139.19,77.4689416]
[1745312428240,7.21259454,139.23,139.2,8.4189416]
[1745312429134,0.03,139.23,139.21,8.4189416]
[1745312429319,0.03,139.23,139.22,8.4189416]
[1745312430444,0.03,139.23,139.19,76.23439797]
[1745312430653,0.03,139.23,139.21,8.4189416]
[1745312432836,0.03,139.23,139.21,51.4689416]
[1745312433641,0.03,139.23,139.19,26.0]
[1745312433843,0.03,139.23,139.19,34.4189416]
[1745312434020,8.4189416,139.2,139.14,7.18672283]
[1745312434227,8.4189416,139.19,139.14,15.60566443]
[1745312434543,8.4189416,139.19,139.15,8.4189416]
[1745312435051,7.18494036,139.18,139.15,8.4189416]
[1745312435646,15.60361908,139.19,139.15,8.4189416]
[1745312435835,7.18467748,139.19,139.15,8.4189416]
[1745312442663,15.60361908,139.19,139.14,43.05]
[1745312442862,15.60361908,139.19,139.14,51.4689416]
[1745312443035,15.60361908,139.19,139.15,8.4189416]
[1745312443351,15.60361908,139.19,139.14,43.05]
[1745312443551,15.60361908,139.19,139.15,8.4189416]
[1745312444478,17.95943501,139.21,139.15,8.4189416]
[1745312444650,8.4189416,139.2,139.15,8.4189416]
[1745312445976,7.18442416,139.19,139.15,8.4189416]
[1745312446551,7.18442416,139.19,139.14,50.23698909]
[1745312446752,7.18442416,139.19,139.15,8.4189416]
[1745312448779,7.18442416,139.19,139.16,43.05]
[1745312448956,15.60336576,139.19,139.16,43.05]
[1745312449881,15.60336576,139.19,139.15,43.05]
[1745312453187,7.18442416,139.19,139.15,43.05]
[1745312453580,15.60336576,139.19,139.15,43.05]
[1745312454356,17.0004,139.23,139.17,8.4189416]
[1745312454357,7.18287602,139.22,139.17,8.4189416]
[1745312454678,7.18287602,139.22,139.18,8.4189416]
[1745312454879,15.60181762,139.22,139.17,8.4189416]
[1745312455488,7.18390804,139.2,139.16,51.4689416]
[1745312455654,15.60284964,139.2,139.15,51.4689416]
[1745312455859,15.60284964,139.2,139.16,43.05]
[1745312456869,7.18390804,139.2,139.16,51.4689416]
[1745312459583,7.1836263,139.21,139.17,8.4189416]
[1745312460386,7.1830958,139.22,139.18,8.4189416]
[1745312460593,0.03,139.23,139.21,8.4189416]
[1745312460885,0.03,139.23,139.22,8.4189416]
[1745312461265,0.03,139.23,139.22,96.11859046]
[1745312461871,0.03,139.23,139.22,178.71859046]
[1745312462275,0.03,139.25,139.24,43.05]
[1745312462472,0.03,139.25,139.24,152.71859046]
[1745312462870,0.03,139.27,139.26,69.05]
[1745312463077,0.03,139.27,139.26,77.4689416]
[1745312464290,0.03,139.27,139.26,84.64975446]
[1745312464683,0.03,139.27,139.26,69.05]
[1745312465886,0.03,139.27,139.26,26.0]
[1745312466190,0.03,139.27,139.26,34.4189416]
[1745312466592,0.03,139.27,139.26,53.06859046]
[1745312467105,0.03,139.27,139.24,108.6]
[1745312467409,8.4489416,139.27,139.24,108.6]
[1745312467980,8.4489416,139.27,139.22,8.4189416]
[1745312468306,7.18081286,139.26,139.22,8.4189416]
[1745312469781,0.03,139.27,139.23,8.4189416]
[1745312470187,7.21037174,139.27,139.23,8.4189416]
[1745312471507,7.21037174,139.27,139.24,8.4189416]
[1745312472680,7.21037174,139.27,139.23,8.4189416]
[1745312473178,7.21037174,139.27,139.22,8.4189416]
[1745312473796,15.62931334,139.27,139.22,8.4189416]
[1745312474101,15.62931334,139.27,139.21,26.0]
[1745312474298,8.4189416,139.25,139.21,26.0]
[1745312475298,8.4189416,139.26,139.21,34.4189416]
[1745312475687,33.5800565,139.27,139.21,34.4189416]
[1745312475916,7.21037174,139.27,139.23,43.05]
[1745312476597,7.21037174,139.27,139.23,51.4689416]
[1745312480702,0.03,139.27,139.25,8.4189416]
[1745312483707,0.03,139.27,139.24,51.35751153]
[1745312484513,0.03,139.27,139.25,8.4189416]
[1745312486529,0.03,139.27,139.26,8.4189416]
[1745312487417,0.03,139.27,139.26,77.29940332]
[1745312491435,0.03,139.27,139.26,103.29940332]
[1745312495539,0.03,139.28,139.26,110.97516972]
[1745312495715,0.03,139.28,139.27,43.05]
[1745312495914,0.03,139.28,139.27,51.4689416]
[1745312496526,0.03,139.28,139.27,70.11859046]
[1745312497246,0.03,139.28,139.27,96.11859046]
[1745312497418,0.03,139.28,139.27,103.29888772]
[1745312505250,0.03,139.28,139.27,136.97465412]
[1745312505441,0.03,139.29,139.28,18.64964886]
[1745312505641,0.03,139.29,139.28,186.39435686]
[1745312507251,0.03,139.29,139.28,193.57413859]
[1745312508839,0.03,139.29,139.28,197.17174328]
[1745312509462,0.03,139.3,139.28,197.17174328]
[1745312509759,0.03,139.3,139.29,96.11859046]
[1745312510942,0.03,139.3,139.29,178.71859046]
[1745312512174,0.03,139.3,139.29,185.89785673]
[1745312512850,0.03,139.3,139.29,201.27785673]
[1745312513757,0.03,139.34,139.33,43.05]
[1745312513936,0.03,139.34,139.33,70.11859046]
[1745312514253,0.03,139.34,139.33,77.29579565]
[1745312515149,0.03,139.34,139.33,159.89579565]
[1745312515830,0.03,139.36,139.35,69.05]
[1745312516037,0.03,139.36,139.35,77.4689416]
[1745312516356,0.03,139.36,139.35,103.29476555]
[1745312519333,0.03,139.36,139.35,219.57053195]
[1745312519763,0.03,139.37,139.35,219.57053195]
[1745312519938,0.03,139.39,139.38,69.05]
[1745312520140,0.03,139.39,139.38,77.4689416]
[1745312520450,0.03,139.39,139.38,185.89322096]
[1745312520638,0.03,139.39,139.38,160.0689416]
[1745312520966,1.5345,139.39,139.37,8.4189416]
[1745312522355,1.5345,139.39,139.38,8.4189416]
[1745312522555,1.5345,139.39,139.38,70.12859046]
[1745312524342,1.5345,139.39,139.38,77.30322096]